Cogmind - Beta 11.1 @@@ ROGUE MODE // 2022.05.15 @ 18:21:01 Player: Trione Result: Destroyed by S-10 Pest with Light Assault Rifle Performance ------------- Evolutions (0) 0 Regions Visited (2) 400 Robots Destroyed (30) 150 Value Destroyed (623) 623 Prototype IDs (0) 0 Alien Tech Used (0) 0 Bonus (0) 0 TOTAL SCORE: 1173 Bonus ------- None Cogmind --------- Core Integrity 0/250 Matter 480/500 Energy 70/250 System Corruption 0% Temperature Cool (13) Movement Treading (240) Ox1 Location -10/Mines Parts ------- > --- POWER (1) -------- Ion Engine > --- PROPULSION (2) --- Light Treads Compact Wheel > --- UTILITY (2) ------ Large Storage Unit High-capacity Matter Pod > --- WEAPON (2) ------- Small Laser Beam Cannon > --- INVENTORY (15) --- Light Ion Engine Light Nuclear Core Wheel Compact Wheel Compact Wheel Compact Wheel Heat Sink Large Battery (200) Hacking Suite Light Cannon Datajack Mining Laser Mining Claw Peak State ------------ > --- POWER ------------ Ion Engine > --- PROPULSION ------- Wheel Compact Wheel > --- UTILITY ---------- Small Storage Unit Improved Terrain Scanner > --- WEAPON ----------- Medium Laser Light Assault Rifle > --- INVENTORY -------- Light Ion Engine Light Treads Light Treads Compact Wheel Compact Wheel Assault Rifle [Rating: 9] Favorites ----------- Power Ion Engine Engine Ion Engine Propulsion Compact Wheel Treads Light Treads Wheel Compact Wheel Utility Small Storage Unit Device Improved Terrain Scanner Storage Small Storage Unit Weapon Beam Cannon Energy Gun Medium Laser Energy Cannon Beam Cannon Ballistic Gun Light Assault Rifle Ballistic Cannon Light Cannon Slashing Weapon Mining Claw Build | -11 -10 -10 ------- Run | Scr Mat Min Slots Evolved . | . . . Power . | . . . Propulsion . | . . . Utility . | . . . Weapon . | . . . Parts Attached 22 | 7 12 3 Power 4 | 1 2 1 Engine 4 | 1 2 1 Core . | . . . Reactor . | . . . Propulsion 6 | 2 3 1 Treads 2 | . 1 1 Leg . | . . . Wheel 4 | 2 2 . Hover . | . . . Flight . | . . . Utility 4 | 2 2 . Device 1 | 1 . . Storage 3 | 1 2 . Processor . | . . . Hackware . | . . . Protection . | . . . Artifact . | . . . Weapon 8 | 2 5 1 Energy Gun 2 | 1 . 1 Energy Cannon 1 | . 1 . Ballistic Gun 3 | 1 2 . Ballistic Cannon 1 | . 1 . Launcher . | . . . Special Weapon . | . . . Impact Weapon . | . . . Slashing Weapon 1 | . 1 . Piercing Weapon . | . . . Special Melee Weapon . | . . . Unidentified Prototypes . | . . . Parts Lost 5 | . 4 1 Power 1 | . . 1 Propulsion 1 | . 1 . Utility 1 | . 1 . Weapon 2 | . 2 . Highest Loss Streak 3 | . 3 1 To Critical Strikes . | . . . Average Slot Usage (%) 94 | . 93 100 Engine 14 | . 14 14 Wheel 27 | . 27 27 Storage 22 | . 21 28 Energy Gun 2 | . . 13 Energy Cannon 9 | . 8 14 Ballistic Gun 10 | . 12 . Ballistic Cannon 4 | . 5 . Naked Turns . | . . . Heaviest Build 35 | 14 35 34 Greatest Support 32 | 26 32 32 Greatest Overweight (x) 1 | . 1 1 Average Overweight (x) . | . . . Largest Inventory Capacity 15 | 8 15 15 Average Capacity 10 | 7 10 15 Most Carried 14 | 8 13 14 Average Carried 8 | 4 8 13 Final Capacity 15 | 8 15 15 Final Carried 13 | 7 13 13 Class Distribution -------------------- 100% | Mutant Dominant Class ---------------- Mutant | -10/Materials Mutant | -10/Mines Resources | -11 -10 -10 ----------- Run | Scr Mat Min Matter Collected 823 | 269 544 10 Remotely . | . . . Salvage Created 1076 | 136 791 149 Parts 68 | 11 45 12 Haulers Intercepted 2 | . 2 . Recyclers Shooed 5 | . 5 . Parts Field Recycled . | . . . Retrieved Matter . | . . . Parts Self-Destructed . | . . . Prevented . | . . . Kills | -11 -10 -10 ------- Run | Scr Mat Min Combat Hostiles Destroyed 19 | . 14 5 Guns 6 | . 5 1 Cannons 12 | . 8 4 Classes Destroyed 7 | 2 5 . Tunneler 4 | 3 1 . Hauler 2 | . 2 . Recycler 3 | 1 2 . Operator 1 | . 1 . Watcher 1 | . 1 . Swarmer 6 | . 3 3 Grunt 13 | . 11 2 Best Kill Streak 5 | 3 5 2 Combat Bots Only 3 | . 3 2 Max Kills in Single Turn 2 | 1 2 1 Gunslinging . | . . . Exploded . | . . . Melee . | . . . Uniques/NPCs Destroyed . | . . . Combat | -11 -10 -10 -------- Run | Scr Mat Min Damage Taken 965 | . 823 142 Core 257 | . 221 36 Absorbed by Shields . | . . . Core Remaining (%) 100 | 100 . . Volleys Fired 96 | 11 76 9 Largest 2 | 1 2 2 Hottest 100 | 50 95 100 Shots Fired 179 | 11 151 17 Gun 116 | 11 97 8 Cannon 63 | . 54 9 Launcher . | . . . Special . | . . . Kinetic 106 | . 106 . Thermal 73 | 11 45 17 Explosive . | . . . Electromagnetic . | . . . Robot Hit Streak 9 | 3 9 8 Robot Miss Streak 6 | 1 6 1 Penetration Max . | . . . Secondary Targets . | . . . Shots Hit Robots 104 | 9 84 11 Core Hits 41 | 5 28 8 Critical Kills . | . . . Critical Parts Destroyed 1 | . 1 . Critical Strikes 1 | . 1 . Destroy 1 | . 1 . Melee Attacks 2 | . 2 . Impact . | . . . Slashing 2 | . 2 . Piercing . | . . . Sneak Attacks . | . . . Combat Hostiles . | . . . Follow-up Attacks . | . . . Damage Inflicted 1453 | 114 1156 183 Guns 735 | 114 578 43 Cannons 718 | . 578 140 Explosions . | . . . Melee . | . . . Ramming . | . . . Kinetic 687 | . 687 . Thermal 766 | 114 469 183 Explosive . | . . . Electromagnetic . | . . . Impact . | . . . Slashing . | . . . Piercing . | . . . Highest Corruption . | . . . Average Corruption . | . . . Corruption Purged . | . . . Corruption Blocked . | . . . Overload Shots . | . . . Overflow Damage 13 | . 13 . Projectiles 13 | . 13 . Explosions . | . . . Melee . | . . . Knockbacks 7 | . 7 . Impact . | . . . Kinetic 5 | . 5 . Secondary 2 | . 2 . Self-Inflicted Damage . | . . . Shots . | . . . Rammed . | . . . Targets Rammed . | . . . Kicked . | . . . Crushed . | . . . Highest Temperature 231 | 60 231 189 Average Temperature 73 | 26 78 69 Received Heat Transfer 453 | . 420 33 Siege Activations . | . . . Robots Corrupted . | . . . Combat Hostiles . | . . . Parts Fried 1 | . 1 . Impact Corruptions 1 | . 1 . Robots Melted . | . . . Combat Hostiles . | . . . Parts Melted 1 | 1 . . Heat Transferred 1765 | 333 1036 396 Parts Sabotaged . | . . . Parts Stolen . | . . . Parts Stripped . | . . . Power Chain Reactions . | . . . Missiles Intercepted . | . . . Alert | -11 -10 -10 ------- Run | Scr Mat Min Peak Influence 235 | 20 235 233 Initial 74 | . 13 74 Average 110 | 7 114 164 Maximum Alert Level 1 | . 1 1 Low Security (%) 91 | 100 91 79 Level 1 8 | . 8 20 Level 2 . | . . . Level 3 . | . . . Level 4 . | . . . Level 5 . | . . . High Security . | . . . Max Security . | . . . Squads Dispatched 3 | . 3 . Investigation 2 | . 2 . Extermination . | . . . Reinforcement 1 | . 1 . Assault . | . . . Garrison . | . . . Intercept . | . . . Searches Triggered . | . . . Construction Impeded . | . . . Haulers Reinforced . | . . . Active Scanning Responses . | . . . Cargo Convoy Interrupts . | . . . Stealth | -11 -10 -10 --------- Run | Scr Mat Min Distress Signals 3 | . 3 . Communications Jammed . | . . . Distress Signals . | . . . Times Spotted 37 | . 29 8 Peak Tracking Total 5 | . 5 4 Tactical Retreats 4 | . 3 1 Traps | -11 -10 -10 ------- Run | Scr Mat Min Traps Triggered 2 | . 2 . Indirectly . | . . . Trap Hack Attempts . | . . . Triggered . | . . . Disarmed . | . . . Reprogrammed . | . . . Reused . | . . . Traps Extracted . | . . . Installed . | . . . Triggered . | . . . Machines | -11 -10 -10 ---------- Run | Scr Mat Min Machines Disabled . | . . . Max in Single Turn . | . . . Machines Sabotaged . | . . . Garrisons Compromised . | . . . Overloaded Fab Kills . | . . . Hacking | -11 -10 -10 --------- Run | Scr Mat Min Machines Accessed 8 | . 7 1 Terminals 7 | . 6 1 Fabricators . | . . . Repair Stations . | . . . Recycling Units 1 | . 1 . Scanalyzers . | . . . Garrison Access . | . . . Total Hacks 17 | . 16 1 Successful 6 | . 5 1 Failed 11 | . 11 . Catastrophic 2 | . 2 . Database Lockouts . | . . . Manual 15 | . 14 1 Terminals 15 | . 14 1 Fabricators . | . . . Repair Stations . | . . . Recycling Units 2 | . 2 . Scanalyzers . | . . . Garrison Access . | . . . Terminal Hacks 3 | . 2 1 Part Schematic 2 | . 2 . Level Access Points 1 | . . 1 Fabricator Hacks . | . . . Repair Station Hacks . | . . . Recycling Unit Hacks . | . . . Scanalyzer . | . . . Garrison Access Hacks . | . . . Unauthorized Hacks 3 | . 3 . Terminals 3 | . 3 . Botnet 3 | . 3 . Fabricators . | . . . Repair Stations . | . . . Recycling Units . | . . . Scanalyzers . | . . . Garrison Access . | . . . Data Cores Recovered . | . . . Used . | . . . Hacking Detections 7 | . 7 . Full Trace Events . | . . . Feedback Events . | . . . Feedback Blocked . | . . . Robot Schematics Acquired . | . . . Robots Built . | . . . Authchips . | . . . Time . | . . . Total Robot Build Rating . | . . . Part Schematics Acquired 2 | . 2 . Parts Built . | . . . Authchips . | . . . Time . | . . . Total Part Build Rating . | . . . Parts Repaired . | . . . Time . | . . . Parts Recycled . | . . . Recycled Matter . | . . . Retrieved Matter . | . . . Retrieved Components . | . . . Parts Scanalyzed . | . . . Part Schematics Acquired . | . . . Parts Damaged . | . . . Bothacking | -11 -10 -10 ------------ Run | Scr Mat Min Used RIF Installer . | . . . Robots Hacked . | . . . Non-combat . | . . . Combat . | . . . Robot Hacks Applied . | . . . Relay Couplers Released . | . . . Fabnet Peak Effective % . | . . . Robots Rewired . | . . . Allies Hacked . | . . . Hacks Repelled . | . . . Allies | -11 -10 -10 -------- Run | Scr Mat Min Total Allies . | . . . Largest Group . | . . . Highest-Rated Group . | . . . Highest-Rated Ally . | . . . Total Orders . | . . . Ally Attacks . | . . . Total Damage . | . . . Kills . | . . . Allies Corrupted . | . . . Allies Melted . | . . . Intel | -11 -10 -10 ------- Run | Scr Mat Min Robot Analysis Total . | . . . Derelict Logs Recovered 1 | . . 1 Drone Launches . | . . . Drone Recoveries . | . . . Exploration | -11 -10 -10 ------------- Run | Scr Mat Min Turns Passed 1189 | 114 935 140 Spaces Moved 777 | 82 607 88 Core 1 | 1 . . Treads . | . . . Legs . | . . . Wheels 776 | 81 607 88 Hover . | . . . Flight . | . . . Fastest Speed 50 | 50 90 100 Average Speed 100 | 89 100 114 Slowest Speed 115 | 90 115 115 Overloaded Moves . | . . . Propulsion Burnouts . | . . . Robots Hopped . | . . . Cave-ins Triggered . | . . . Exploration Rate (%) 30 | 5 64 23 Regions Visited 2 Branch Regions 1 Pre-discovered Areas 1 | . . 1 Known Exits Taken . | . . . Unknown Exits Taken 2 | 1 1 . Scrap Searched . | . . . Spaces Dug 1 | . 1 . Terrain Destroyed 1 | . 1 . Melee 1 | . 1 . Projectile . | . . . AOE . | . . . Terrain Rammed . | . . . Walls Destroyed . | . . . Machines Disabled . | . . . Actions | -11 -10 -10 --------- Run | Scr Mat Min Total 1006 | 108 788 110 Wait 82 | . 73 9 Move 775 | 81 606 88 Hop . | . . . Pick Up 21 | 8 12 1 Fast Attach 8 | 7 1 . Attach 6 | . 5 1 Detach 1 | . 1 . Swap 8 | . 6 2 Drop 7 | 1 6 . Fire 96 | 11 76 9 Melee 2 | . 2 . Ram . | . . . Kick . | . . . Crush . | . . . Escape Stasis . | . . . Rewire . | . . . Trap . | . . . Miscellaneous . | . . . Route ------- -11/Scrapyard -10/Materials (discovered 3 exits: *Mat x2 / *Min) -10/Mines (discovered 2 exits: Mat x2) History --------- Turn | Location | Event 17 | -11/Scrapyard | Discovered new exit (range 15) 115 | -11/Scrapyard | Entered Materials 213 | -10/Materials | Lost 3 parts (1n1u1w) 219 | -10/Materials | Core integrity fell below 50% 323 | -10/Materials | Build established: Mutant 484 | -10/Materials | Discovered new exit (range 13) 605 | -10/Materials | Discovered new exit (range 10) 885 | -10/Materials | Discovered new exit (range 10) 976 | -10/Materials | Core integrity fell below 20% 1050 | -10/Materials | Entered Mines 1112 | -10/Mines | Identified exit to Materials 1115 | -10/Mines | Learned location of Storage (-9) 1190 | -10/Mines | Destroyed by S-10 Pest with Light Assault Rifle Last Messages --------------- 01065_ K-01 Serf collects debris. 01066_ S-10 Pest destroyed. 01067_ Acquired 10 matter. 01069_ K-01 Serf collects debris. 01097_ S-10 Pest destroyed. 01112_ Connecting with Terminal... 01112_ Current location identified: Mines >>Access(Main) Found 2 level access points to Materials: (65,53) (3,30) Map updated. 01113_ K-01 Serf collects debris. 01115_ Acquired derelict log, extracted data. World map updated: -9/Storage. 01129_ K-01 Serf collects debris. 01161_ G-47 Trooper destroyed. 01167_ G-34 Mercenary destroyed. 01173_ Acquired Lgt. Nuclear Core. 01185_ Ion Engine destroyed. Map ----- +----------------------------------------------------+ | ?????????????????????????????????????????????????? | | ?????????????????????????????????????????????????? | | ?????????????????????????????????????????????????? | | ?????????????????????????????????????????????????? | | ?????????????????????????????????????????????????? | | ?????????????????????????????????????????????????? | | ?????????????????????????????????????????????????? | | ?????????????????????????????????????????????????? | | ?????????????????????????????????????????????????? | | ?????????????????????????????????????????????????? | | ?????????????????????????????????????????????????? | | ???????? #???????????????????????????????????????? | | ???????? #??????????????????????????????????????? | | ??????? ??????????????????????????????????????? | | ??????? ??????????####????????????????????????? | | ???????? ?????????## ##???????????????????????? | | ???????? #????????# #???????????????????????? | | ????????? ##?????## #???????????????????????? | | ?????????# ####?## #???????????????????????? | | ?????????# ### % #?????????????????????